bitfinex/quotes_ETHUSD_20241003
["timestamp","ask_amount","ask_price","bid_price","bid_amount"]
[1727969433802,3.0,2319.7,2319.4,0.7849]
[1727969433998,2.23375162,2320.1,2319.7,4.31081]
[1727969434243,2.23375162,2320.2,2319.9,0.8193]
[1727969434421,4.30997,2320.2,2319.9,1.76337]
[1727969434901,2.23375162,2320.5,2320.2,0.8193]
[1727969435102,2.68050195,2320.8,2320.3,4.85965]
[1727969435341,6.54226162,2321.0,2320.6,0.55]
[1727969435645,2.23375162,2321.0,2320.6,4.30913]
[1727969435944,6.54211162,2321.1,2320.7,0.8241]
[1727969436169,2.23375162,2321.1,2320.7,0.8241]
[1727969436371,2.23375162,2321.0,2320.7,0.8241]
[1727969436557,4.30858,2321.0,2320.7,0.8241]
[1727969436889,7.05116693,2321.1,2320.7,0.8241]
[1727969437048,4.3084,2321.1,2320.8,0.513329]
[1727969437250,8.6168,2321.1,2320.7,0.8241]
[1727969437463,4.3084,2321.1,2320.7,0.8241]
[1727969437775,4.30885,2320.8,2320.4,0.7651]
[1727969437969,2.23725658,2321.0,2320.4,0.7651]
[1727969438173,6.54564658,2321.1,2320.6,4.3091]
[1727969438384,5.23725658,2321.1,2320.6,8.61822]
[1727969438534,3.0,2321.1,2320.7,0.7951]
[1727969438933,7.30836,2321.1,2320.7,0.7951]
[1727969439180,4.30885,2320.8,2320.7,0.7951]
[1727969439890,4.30926,2320.6,2320.4,0.8017]
[1727969440030,3.0,2320.9,2320.4,0.8017]
[1727969440232,4.30902,2320.8,2320.4,2.4824602]
[1727969440629,3.0,2320.9,2320.5,4.30937]
[1727969440944,4.3086,2321.0,2320.4,2.4824602]
[1727969441145,3.0,2321.1,2320.4,0.8017]
[1727969441484,4.30941,2320.5,2320.4,0.8017]
[1727969442477,4.30888,2320.8,2320.3,24.08689615]
[1727969442636,4.30897,2320.8,2320.3,24.08689615]
[1727969442835,2.2308239,2320.9,2320.4,5.11548]
[1727969442836,5.2308239,2320.9,2320.4,5.11548]
[1727969443084,4.3083,2321.1,2320.5,0.55]
[1727969443283,4.30886,2320.8,2320.4,0.806]
[1727969443432,0.7912,2321.0,2320.4,0.806]
[1727969443642,0.7912,2321.0,2320.3,24.08689615]
[1727969443643,4.3096,2320.4,2320.3,24.08689615]
[1727969444362,7.3096,2320.4,2320.3,24.08689615]
[1727969444555,8.1008,2320.4,2320.3,24.08689615]
[1727969444751,10.3316239,2320.4,2320.3,24.08689615]
[1727969445180,8.1008,2320.4,2320.3,24.08689615]
[1727969445339,7.3096,2320.4,2320.3,24.08689615]
[1727969446686,10.3388239,2320.4,2320.3,24.08689615]
[1727969446989,8.108,2320.4,2320.3,24.08689615]
[1727969447481,10.78498868,2320.4,2320.3,24.08689615]
[1727969447988,8.108,2320.4,2320.3,24.08689615]
[1727969448194,27.36213746,2320.4,2320.3,24.08689615]
[1727969448340,12.776911,2320.4,2320.3,23.438826]
[1727969448542,11.188103,2320.4,2320.3,23.438826]
[1727969449153,10.78458366,2320.4,2320.3,23.438826]
[1727969449690,10.3384533,2320.4,2320.3,23.438826]
[1727969449854,8.108,2320.4,2320.3,23.438826]
[1727969450243,10.78541219,2320.4,2320.3,23.438826]
[1727969450954,8.108,2320.4,2320.3,23.438826]
[1727969451155,10.78682914,2320.4,2320.3,23.438826]
[1727969451358,14.57746914,2320.4,2320.3,23.438826]
[1727969451544,10.7864691,2320.4,2320.3,23.438826]
[1727969451751,13.5497681,2320.4,2320.3,23.438826]
[1727969451952,10.7864691,2320.4,2320.3,23.438826]
[1727969452751,7.3096,2320.4,2320.3,23.438826]
[1727969452948,9.54210392,2320.4,2320.3,23.438826]
[1727969453393,7.3096,2320.4,2320.3,23.438826]
[1727969453881,21.506096,2320.4,2320.3,23.438826]
[1727969454193,20.285032,2320.4,2320.3,23.438826]
[1727969454393,22.96382825,2320.4,2320.3,23.438826]
[1727969454546,20.285032,2320.4,2320.3,23.438826]
[1727969455039,8.0838,2320.4,2320.3,23.438826]
[1727969455248,17.416292,2320.4,2320.3,23.438826]
[1727969455451,18.79864,2320.4,2320.3,23.438826]
[1727969456145,11.553839,2320.4,2320.3,23.438826]
[1727969456293,10.0626857,2320.4,2320.3,23.438826]
[1727969456492,7.3096,2320.4,2320.3,23.438826]
[1727969456722,9.54197283,2320.4,2320.3,23.438826]
[1727969457298,6.54197283,2320.4,2320.3,23.438826]
[1727969457493,4.3096,2320.4,2320.3,23.438826]
[1727969457737,5.09,2320.4,2320.3,23.438826]
[1727969457897,5.72273181,2320.4,2320.3,23.438826]
[1727969458094,33.53255711,2320.4,2320.3,23.438826]
[1727969458331,31.71040869,2320.4,2320.3,23.438826]
[1727969458543,36.25672562,2320.4,2320.3,23.438826]
[1727969458831,34.25834421,2320.4,2320.3,23.438826]
[1727969459038,33.70834421,2320.4,2320.3,23.438826]
[1727969459242,33.74653712,2320.4,2320.3,23.438826]
[1727969459450,31.97723612,2320.4,2320.3,23.438826]
[1727969460012,31.34450431,2320.4,2320.3,23.438826]
[1727969460413,4.3096,2320.4,2320.3,23.438826]
[1727969461921,4.30906,2320.7,2320.3,24.267626]
[1727969461922,4.30921,2320.7,2320.3,24.267626]
[1727969462222,4.4365737,2320.8,2320.5,5.09948]
[1727969462425,4.4365737,2320.8,2320.5,0.7901]
[1727969463624,4.30913,2320.7,2320.5,0.7901]
[1727969463828,4.30923,2320.6,2320.5,0.7901]
[1727969464058,7.30923,2320.6,2320.5,0.7901]
[1727969464554,2.23055568,2320.9,2320.6,4.30909]
[1727969464730,4.30885,2320.8,2320.7,0.7901]
[1727969465072,4.3085,2321.0,2320.7,0.7901]
[1727969465219,4.30831,2321.1,2320.8,0.509924]
[1727969465762,8.61673,2321.1,2320.8,0.509924]
[1727969465948,7.30857,2321.0,2320.8,0.509924]
[1727969466279,4.30867,2320.9,2320.7,0.7901]
[1727969466575,4.30885,2320.8,2320.7,0.7901]
[1727969466922,4.30867,2320.9,2320.7,0.7901]
[1727969467130,7.3086,2321.0,2320.7,0.7901]
[1727969467973,3.0,2321.0,2320.8,0.509927]
[1727969468181,4.30759,2321.5,2320.8,0.509927]
[1727969468182,2.23029764,2321.5,2320.9,0.7981]
[1727969468423,3.1224167,2322.0,2320.8,0.509927]
[1727969468424,2.23029764,2322.0,2321.6,0.7945]
[1727969468671,2.23029764,2322.0,2321.7,4.30717]
[1727969468871,2.23029764,2322.0,2321.9,1.3445]
[1727969469037,1.66923516,2322.0,2321.9,6.216448]
[1727969469240,2.67635717,2322.5,2322.2,0.7749]
[1727969469421,2.67635717,2322.5,2322.1,0.55]
[1727969469422,4.30497,2322.9,2322.6,0.7749]
[1727969469624,4.30396,2323.5,2322.7,0.55]
[1727969469832,7.76762717,2323.8,2323.0,0.7749]
[1727969469833,4.30337,2323.8,2323.0,0.7749]
[1727969470081,4.3036,2323.7,2323.1,0.55]
[1727969470278,4.30349,2323.7,2323.1,0.55]
[1727969470580,4.30379,2323.6,2323.1,0.562985]
[1727969470775,4.30387,2323.5,2323.1,0.562985]
[1727969470947,8.60763,2323.6,2323.1,0.562985]
[1727969471277,4.30386,2323.5,2323.2,0.5642635]
[1727969471473,4.30386,2323.5,2323.1,24.001811]
[1727969472173,4.30432,2323.3,2323.1,24.001811]
[1727969472541,4.3044,2323.2,2323.1,23.438826]
[1727969472878,7.3044,2323.2,2323.1,23.438826]
[1727969474512,3.0,2323.3,2323.1,23.438826]
[1727969474804,3.0,2323.6,2323.2,5.12513]
[1727969475108,3.0,2323.6,2323.3,3.2868526]
[1727969475306,0.1156938,2323.9,2323.2,0.8208]
[1727969475605,4.30406,2323.4,2323.2,0.8208]
[1727969476262,4.30422,2323.3,2323.2,0.8208]
[1727969476460,7.30422,2323.3,2323.2,0.8208]
[1727969476777,7.3044,2323.2,2323.1,23.438826]
[1727969477360,3.0,2323.2,2323.1,23.438826]
[1727969477768,7.3044,2323.2,2323.1,23.438826]
[1727969477970,3.0,2323.2,2323.1,23.438826]
[1727969478171,3.0,2323.5,2323.1,30.1683286]
[1727969478405,3.0,2323.5,2323.2,0.03656595]
[1727969478726,7.30381,2323.6,2323.2,0.03656595]
[1727969478924,3.0,2323.6,2323.2,6.93085941]
[1727969479211,4.4189238,2323.9,2323.3,4.85406]
[1727969479367,0.1156938,2323.9,2323.5,4.30371]
[1727969479572,4.30332,2323.8,2323.6,0.03656002]
[1727969479810,4.30364,2323.7,2323.4,0.788]
[1727969479978,4.30369,2323.6,2323.4,0.788]
[1727969480811,4.30385,2323.5,2323.3,23.438826]
[1727969481021,7.30403,2323.4,2323.3,23.438826]
[1727969483789,3.0,2323.4,2323.3,23.438826]
[1727969483991,3.0,2323.5,2323.3,26.5418086]
[1727969484528,7.30393,2323.5,2323.3,24.197926]
[1727969484835,7.30403,2323.4,2323.3,24.197926]
[1727969485000,7.30403,2323.4,2323.3,23.438826]
[1727969486044,4.4189038,2323.9,2323.3,23.438826]
[1727969486045,3.0,2323.6,2323.4,0.7597]
[1727969486389,4.30357,2323.7,2323.4,0.7597]
[1727969486589,0.1156938,2323.9,2323.5,4.30384]
[1727969486812,0.1156938,2323.9,2323.5,4.30377]
[1727969487028,0.1156938,2323.9,2323.8,5.07399]
[1727969487223,0.1156938,2323.9,2323.8,5.62399]
[1727969487431,0.1156938,2323.9,2323.8,30.055563]
[1727969488017,0.1156938,2323.9,2323.8,25.752273]
[1727969488242,0.1156938,2323.9,2323.8,30.055563]
[1727969489119,4.30137,2324.9,2324.3,1.3374]
[1727969489439,4.30137,2324.9,2324.4,27.740956]
[1727969489588,4.30144,2324.8,2324.5,3.3380646]
[1727969490430,8.60302,2324.8,2324.5,3.3380646]
[1727969490629,4.30144,2324.8,2324.5,3.3380646]
[1727969490838,4.30163,2324.7,2324.5,3.3380646]
[1727969491016,4.30144,2324.8,2324.5,3.3380646]
[1727969491333,4.30167,2324.7,2324.5,3.3380646]
[1727969491489,4.30144,2324.8,2324.5,3.3380646]
[1727969491694,3.0,2324.9,2324.6,2.67768906]
[1727969492113,7.30134,2324.9,2324.6,2.67768906]
[1727969492303,8.60342,2324.7,2324.4,23.438826]
[1727969492500,4.30163,2324.7,2324.4,23.438826]
[1727969492914,7.30141,2324.9,2324.4,23.438826]
[1727969493119,4.30145,2324.8,2324.4,23.438826]
[1727969493329,4.30113,2325.0,2324.4,23.438826]
[1727969493621,4.302,2324.5,2324.4,24.262226]
[1727969493821,4.30182,2324.6,2324.4,24.262226]
[1727969494025,3.0,2324.7,2324.4,24.262226]
[1727969494218,3.0,2324.7,2324.5,0.05570175]
[1727969494425,4.30043,2325.4,2324.7,4.30162]
[1727969494610,4.30043,2325.4,2324.8,23.438826]
[1727969494611,4.301,2325.1,2324.8,23.438826]
[1727969494807,4.30126,2324.9,2324.8,23.438826]
[1727969495849,7.30126,2324.9,2324.8,23.438826]
[1727969496044,8.11276,2324.9,2324.8,23.438826]
[1727969497234,7.30126,2324.9,2324.8,23.438826]
[1727969498714,4.30081,2325.2,2324.8,25.7827086]
[1727969498897,4.30088,2325.2,2324.8,25.7827086]
[1727969499092,8.60175,2325.2,2324.8,25.7827086]
[1727969499323,5.07679,2325.6,2324.8,25.7827086]
[1727969499324,4.30046,2325.4,2324.8,25.7827086]
[1727969499531,4.30046,2325.4,2324.9,7.30953286]
[1727969499725,4.29991,2325.7,2325.0,0.8057]
[1727969499933,4.30064,2325.3,2325.0,0.8057]
[1727969500149,4.30064,2325.3,2324.8,23.438826]
[1727969500150,4.30126,2324.9,2324.8,23.438826]
[1727969500441,8.1316,2325.9,2324.8,24.26268343]
[1727969500753,4.3001,2325.6,2324.9,0.04420175]
[1727969500904,4.3001,2325.6,2325.1,4.30072]
[1727969501103,4.29967,2325.8,2325.1,4.30072]
[1727969501104,4.29995,2325.7,2325.2,4.34483604]
[1727969501304,4.29986,2325.7,2325.3,3.2084382]
[1727969501498,4.29986,2325.7,2325.4,0.04420002]
[1727969501745,4.29996,2325.6,2325.4,0.04420002]
[1727969502052,4.29952,2325.9,2325.5,0.7594]
[1727969502342,4.29961,2325.8,2325.5,0.7594]
[1727969502700,4.29987,2325.7,2325.5,0.7594]
[1727969502897,4.29959,2325.8,2325.5,0.7594]
[1727969503122,4.29986,2325.7,2325.5,24.198226]
[1727969503327,4.29996,2325.6,2325.5,24.198226]
[1727969503944,8.5998,2325.7,2325.5,24.198226]
[1727969504145,3.0,2325.8,2325.5,26.93889242]
[1727969504345,3.0,2325.8,2325.5,31.23904242]
[1727969504520,7.29934,2326.0,2325.5,31.23904242]
[1727969504728,0.1156938,2326.2,2325.5,31.23904242]
[1727969504729,3.0,2325.8,2325.5,26.93889242]
[1727969504928,4.2998,2325.7,2325.5,24.198226]
[1727969505160,4.2996,2325.8,2325.5,24.198226]
[1727969505360,4.29961,2325.8,2325.5,24.198226]
[1727969506485,4.29985,2325.7,2325.5,23.438826]
[1727969506763,7.29996,2325.6,2325.5,23.438826]
[1727969507160,8.11446,2325.6,2325.5,23.438826]
[1727969507853,8.11446,2325.6,2325.5,23.428826]
[1727969508426,10.88032,2325.6,2325.5,23.428826]
[1727969508953,11.89404025,2325.6,2325.5,23.14655072]
[1727969509362,11.89404025,2325.6,2325.5,20.71150072]
[1727969509363,13.59085006,2325.6,2325.5,20.71150072]
[1727969509671,18.04011634,2325.6,2325.5,9.96110072]
[1727969510038,17.06508628,2325.6,2325.5,9.96110072]
[1727969510451,16.61582,2325.6,2325.5,9.96110072]
[1727969510774,13.62458173,2325.6,2325.5,9.52545221]
[1727969510954,14.07472774,2325.6,2325.5,9.52545221]
[1727969511366,13.56341793,2325.6,2325.5,9.52545221]
[1727969511678,13.11327192,2325.6,2325.5,9.52545221]
[1727969513188,12.56327192,2325.6,2325.5,9.52545221]
[1727969513666,7.06582,2325.6,2325.5,9.52545221]
[1727969513871,11.14813,2325.6,2325.5,9.52545221]
[1727969514051,7.960297,2325.6,2325.5,9.52545221]
[1727969514259,10.91567192,2325.6,2325.5,9.52545221]
[1727969514447,12.91567192,2325.6,2325.5,9.52545221]
[1727969514774,15.91567192,2325.6,2325.5,9.52545221]
[1727969515183,7.29996,2325.6,2325.5,9.52545221]
[1727969515380,12.1042,2325.6,2325.5,9.52545221]
[1727969515594,10.420618,2325.6,2325.5,9.52545221]
[1727969516210,7.29996,2325.6,2325.5,9.52545221]
[1727969516415,13.40216,2325.6,2325.5,9.52545221]
[1727969516621,15.89961192,2325.6,2325.5,9.52545221]
[1727969517465,15.34961192,2325.6,2325.5,9.52545221]
[1727969517700,9.29996,2325.6,2325.5,9.52545221]
[1727969517903,7.29996,2325.6,2325.5,9.52545221]
[1727969518616,9.507566,2325.6,2325.5,9.52545221]
[1727969518944,7.29996,2325.6,2325.5,9.52545221]
[1727969519073,4.29996,2325.6,2325.5,9.52545221]
[1727969520054,11.133283,2325.6,2325.5,9.52545221]
[1727969520312,11.63073492,2325.6,2325.5,9.52545221]
[1727969520624,7.29996,2325.6,2325.5,9.52545221]
[1727969522188,17.82906,2325.6,2325.5,9.52545221]
[1727969522587,7.29996,2325.6,2325.5,9.52545221]
[1727969522987,4.29996,2325.6,2325.5,10.32275221]
[1727969523189,7.96314572,2326.2,2325.5,10.32275221]
[1727969523190,1.40732899,2326.2,2325.5,10.32275221]
[1727969523502,8.59979,2325.7,2325.5,10.32275221]
[1727969523721,4.29996,2325.6,2325.5,10.32275221]
[1727969523871,0.1156938,2326.2,2325.5,10.32275221]
[1727969524071,4.29925,2326.0,2325.7,0.7973]
[1727969524318,4.29949,2325.9,2325.7,0.7973]
[1727969524630,4.29925,2326.0,2325.7,0.7973]
[1727969524631,4.29925,2326.0,2325.7,10.32275221]
[1727969525087,4.2995,2325.9,2325.7,10.32275221]
[1727969525277,4.4146438,2326.2,2325.7,11.35502743]
[1727969525482,4.4146438,2326.2,2325.9,0.7647]
[1727969525679,4.4146438,2326.2,2326.0,0.08597388]
[1727969525982,4.4146438,2326.2,2326.0,9.52545221]
[1727969525983,4.29904,2326.1,2326.0,9.52545221]
[1727969526303,7.29904,2326.1,2326.0,9.52545221]
[1727969527484,30.37795049,2326.1,2326.0,9.52545221]
[1727969527839,13.54874667,2326.1,2326.0,9.52545221]
[1727969527986,7.29904,2326.1,2326.0,9.52545221]
[1727969528329,9.52320848,2326.1,2326.0,9.52545221]
[1727969528483,11.889722,2326.1,2326.0,9.52545221]
[1727969528682,9.52474773,2326.1,2326.0,9.52545221]
[1727969529414,7.29904,2326.1,2326.0,9.52545221]
[1727969530191,9.96804217,2326.1,2326.0,9.52545221]
[1727969530430,24.08724592,2326.1,2326.0,9.07432762]
[1727969530651,28.37975733,2326.1,2326.0,9.07432762]
[1727969531285,32.06690445,2326.1,2326.0,9.07432762]
[1727969531486,28.37975733,2326.1,2326.0,9.07432762]
[1727969532529,32.07149147,2326.1,2326.0,9.07432762]
[1727969532742,28.37975733,2326.1,2326.0,9.07432762]
[1727969533690,32.91348345,2326.1,2326.0,9.07432762]
[1727969533895,36.91348345,2326.1,2326.0,9.07432762]
[1727969534112,32.47690975,2326.1,2326.0,9.07432762]
[1727969535012,36.91018283,2326.1,2326.0,9.03084065]
[1727969535222,30.91018283,2326.1,2326.0,9.03084065]
[1727969535526,32.91018283,2326.1,2326.0,9.03084065]
[1727969535709,28.47690975,2326.1,2326.0,9.03084065]
[1727969535915,32.80972211,2326.1,2326.0,9.03084065]
[1727969536110,30.80972211,2326.1,2326.0,9.03084065]
[1727969536661,32.80972211,2326.1,2326.0,9.03084065]
[1727969537339,28.47690975,2326.1,2326.0,9.03084065]
[1727969537680,32.89106714,2326.1,2326.0,9.03084065]
[1727969537819,33.34099925,2326.1,2326.0,9.03084065]
[1727969538017,32.82968944,2326.1,2326.0,9.03084065]
[1727969538266,32.37975733,2326.1,2326.0,9.03084065]
[1727969538718,32.37975733,2326.1,2326.0,8.38886162]
[1727969539759,33.39113026,2326.1,2326.0,4.07671784]
[1727969539967,4.30348,2323.7,2323.6,0.7983]
[1727969540316,7.30348,2323.7,2323.6,0.7983]
[1727969540629,4.30334,2323.8,2322.4,7.33]
[1727969540630,4.30496,2322.9,2322.4,7.33]
[1727969540975,3.0,2323.6,2322.0,45.7368]
[1727969540976,4.30551,2322.6,2322.5,1.163606]
[1727969541270,4.30537,2322.7,2322.2,4.30624]
[1727969541597,4.30436,2323.3,2322.7,4.30519]
[1727969541888,4.30443,2323.2,2322.8,0.430519]
[1727969542473,4.30459,2323.1,2322.8,0.430519]
[1727969542789,4.30443,2323.2,2322.6,0.55]
[1727969543073,4.30443,2323.2,2322.7,4.30526]
[1727969543274,4.30443,2323.2,2322.7,4.30531]
[1727969543434,4.30459,2323.1,2322.7,4.30531]
[1727969543635,4.30459,2323.1,2322.8,1.275231]
[1727969544082,4.30443,2323.2,2322.8,1.275231]
[1727969544283,4.30443,2323.2,2322.9,0.7913]
[1727969544576,4.3038,2323.6,2323.1,4.30448]
[1727969544733,4.3038,2323.6,2323.3,0.7663]
[1727969544937,4.30373,2323.6,2323.3,0.7663]
[1727969545140,4.30403,2323.4,2323.3,0.7663]
[1727969545990,7.30403,2323.4,2323.3,0.7663]
[1727969547939,4.30374,2323.6,2323.3,0.7663]
[1727969548139,4.30355,2323.7,2323.3,0.7663]
[1727969548452,4.30403,2323.4,2323.3,0.7663]
[1727969548655,7.35,2324.2,2323.3,0.7663]
[1727969548656,4.30353,2323.7,2323.3,0.7663]
[1727969548861,4.30353,2323.7,2323.4,0.507061]
[1727969549129,11.6521,2324.5,2323.5,0.8264]
[1727969549260,4.30255,2324.2,2323.5,0.8264]
[1727969549465,4.30366,2323.6,2323.5,0.8264]
[1727969550066,4.30349,2323.7,2323.5,0.8264]
[1727969550268,7.30366,2323.6,2323.5,0.8264]
[1727969550718,3.0,2323.6,2323.5,0.8264]
[1727969550867,4.30323,2323.9,2323.5,0.8264]
[1727969551212,7.35,2324.2,2323.5,0.8264]
[1727969551364,4.30312,2323.9,2323.5,5.13023]
[1727969551562,4.30312,2323.9,2323.6,0.99805678]
[1727969551800,4.30301,2324.0,2323.6,0.943411]
[1727969551801,4.30306,2324.0,2323.6,0.943411]
[1727969552000,4.3034,2323.8,2323.6,0.943411]
[1727969552363,4.30319,2323.9,2323.5,5.13025]
[1727969552609,3.0,2324.0,2323.6,4.30357]
[1727969552924,4.30206,2324.5,2324.0,5.11074]
[1727969553075,4.30271,2324.2,2324.0,0.8079]
[1727969553273,4.30248,2324.3,2324.0,0.8079]
[1727969553497,4.3017,2324.7,2324.2,4.30247]
[1727969553698,11.06722193,2325.4,2324.0,4.3029]
[1727969553699,4.30215,2324.5,2324.4,0.7814]
[1727969553909,4.30184,2324.6,2324.4,0.7814]
[1727969554117,4.302,2324.5,2324.4,0.7814]
[1727969554625,4.30315,2323.9,2323.7,0.7558]
[1727969554909,4.30292,2324.0,2323.7,2.349508]
[1727969555110,0.56650764,2324.7,2323.7,2.349508]
[1727969555111,4.30329,2323.8,2323.7,0.7558]
[1727969555327,4.30312,2323.9,2323.7,0.7558]
[1727969555701,4.30274,2324.1,2323.7,0.7558]
[1727969555904,4.30297,2324.0,2323.7,0.7558]
[1727969556084,4.30329,2323.8,2323.7,0.7558]
[1727969557053,4.30295,2324.0,2323.7,0.7558]
[1727969557328,3.0,2324.0,2323.8,0.05455971]
[1727969557541,3.0,2324.0,2323.8,0.56594468]
[1727969557847,4.30311,2323.9,2323.8,0.51138497]
[1727969558047,4.30329,2323.8,2323.7,0.7558]
[1727969558617,4.30329,2323.8,2323.3,0.7828]
[1727969558618,4.30399,2323.5,2323.3,0.7828]
[1727969558808,4.30403,2323.4,2323.3,0.7828]
[1727969559142,4.30373,2323.6,2323.3,0.7828]
[1727969559432,7.30349,2323.7,2323.3,1.291539]
[1727969559647,4.30394,2323.5,2323.3,1.291539]
[1727969559933,4.30394,2323.5,2323.3,0.7828]
[1727969560244,4.30358,2323.7,2323.3,0.7828]
[1727969560245,4.30369,2323.6,2323.3,0.7828]
[1727969560544,4.30386,2323.5,2323.3,0.7828]
[1727969560695,3.5099,2324.2,2323.3,0.7828]
[1727969560893,4.30379,2323.6,2323.3,0.7828]
[1727969561093,4.30379,2323.6,2323.3,2.024508]
[1727969561335,3.0,2323.7,2323.4,4.30402]
[1727969561546,3.0,2323.7,2323.5,0.8299]
[1727969561753,6.51734302,2324.6,2323.5,0.8299]
[1727969561754,4.30366,2323.6,2323.5,0.8299]
[1727969562507,7.30366,2323.6,2323.5,0.8299]
[1727969562710,4.30348,2323.7,2322.9,0.7583]
[1727969562711,4.30432,2323.3,2322.9,0.7583]
[1727969563014,4.30432,2323.3,2322.9,6.302586]
[1727969563815,4.30406,2323.4,2323.1,0.8051]
[1727969565257,4.30412,2323.4,2323.1,0.8051]
[1727969565417,3.0,2323.8,2323.1,0.8051]
[1727969565783,4.30322,2323.9,2323.4,5.08745]
[1727969566058,4.30303,2324.0,2323.7,0.7836]
[1727969566266,4.30213,2324.5,2324.0,4.30279]
[1727969566267,4.30203,2324.5,2324.0,4.30279]
[1727969566465,4.30203,2324.5,2324.1,5.502899]
[1727969566818,4.3017,2324.7,2324.1,1.200179]
[1727969567193,4.30195,2324.6,2324.1,5.502739]
[1727969567324,4.30116,2325.0,2324.4,0.7699]
[1727969567658,4.30116,2325.0,2324.5,4.864193]
[1727969567899,4.30116,2325.0,2324.6,0.7699]
[1727969568020,4.30097,2325.1,2324.6,0.7699]
[1727969568222,4.30064,2325.3,2324.6,0.7699]
[1727969568442,4.30028,2325.5,2325.0,0.8161]
[1727969568637,4.30026,2325.5,2325.0,0.8161]
[1727969568969,4.80966973,2325.6,2325.0,0.8161]
[1727969569266,4.80966973,2325.6,2325.0,5.11699]
[1727969569267,0.50958973,2325.6,2325.0,5.11699]
[1727969569423,4.30036,2325.4,2325.0,1.382799]
[1727969570164,4.30015,2325.5,2325.0,5.11716]
[1727969570657,4.80962973,2325.6,2325.2,0.7973]
[1727969570844,4.80962973,2325.6,2325.3,0.08587994]
[1727969571252,4.29971,2325.8,2325.2,4.30069]
[1727969571557,0.56650764,2326.1,2325.4,4.30032]
[1727969571558,4.29949,2325.9,2325.4,4.30032]
[1727969571963,4.86569764,2326.1,2325.3,0.7908]
[1727969571964,4.2998,2325.7,2325.3,0.7908]
[1727969572134,4.29949,2325.9,2325.4,4.30024]
[1727969572335,0.56650764,2325.9,2325.3,0.7908]
[1727969572665,4.30033,2325.4,2325.3,0.7908]
[1727969572972,4.30019,2325.5,2324.7,0.8037]
[1727969572973,4.30097,2325.1,2324.7,0.8037]
[1727969573769,8.60202,2325.1,2324.7,0.8037]
[1727969573963,4.30063,2325.3,2324.7,0.8037]
[1727969574168,4.30131,2324.9,2324.7,0.8037]
[1727969574322,4.30072,2325.2,2324.7,5.1052]
[1727969574526,4.30072,2325.2,2324.7,10.347453]
[1727969574767,4.30072,2325.2,2324.7,5.1052]
[1727969574927,8.60152,2325.2,2324.7,5.1052]
[1727969575131,4.30072,2325.2,2324.8,4.30141]
[1727969575446,4.30072,2325.2,2324.7,5.1052]
[1727969575630,4.30072,2325.2,2324.7,6.045905]
[1727969575830,4.30089,2325.1,2324.7,6.045905]
[1727969576276,4.30072,2325.2,2324.7,6.045905]
[1727969576631,4.30099,2325.1,2324.7,1.744405]
[1727969576835,7.30071,2325.2,2324.7,6.046025]
[1727969577175,4.30089,2325.1,2324.7,6.046025]
[1727969577356,4.30089,2325.1,2324.7,6.045935]
[1727969577528,7.30074,2325.2,2324.7,1.744405]
[1727969577724,4.30035,2325.4,2324.9,4.30115]
[1727969577929,4.30022,2325.5,2325.0,5.07929]
[1727969578357,4.30014,2325.6,2325.0,5.07929]
[1727969578565,4.30006,2325.6,2325.1,8.60156]
[1727969578748,4.30006,2325.6,2325.2,0.937986]
[1727969578956,4.30025,2325.5,2325.2,0.937986]
[1727969579178,4.30006,2325.6,2325.2,0.937986]
[1727969579333,4.30044,2325.4,2325.2,0.937986]
[1727969579532,4.30018,2325.5,2325.0,5.07927]
[1727969579840,4.29993,2325.7,2325.1,4.30088]
[1727969580166,4.3,2325.6,2325.1,4.30088]
[1727969580383,4.2995,2325.9,2325.4,4.30025]
[1727969580531,3.0,2325.8,2325.5,0.430025]
[1727969580735,4.4145638,2326.2,2325.6,0.7755]
[1727969580954,0.1156938,2326.2,2325.8,4.29959]
[1727969581128,4.2993,2326.0,2325.6,5.07541]
[1727969581329,0.1156938,2326.2,2325.7,0.55]
[1727969581685,0.1156938,2326.2,2325.8,4.29945]
[1727969581832,0.1156938,2326.2,2325.9,0.429945]
[1727969582483,4.4145638,2326.2,2325.9,0.429945]
[1727969582628,4.29915,2326.1,2325.6,5.07532]
[1727969582831,0.1156938,2326.2,2325.6,0.7755]
[1727969583031,4.29956,2325.9,2325.6,0.7755]
[1727969583874,4.29924,2326.0,2325.6,5.07545]
[1727969584085,4.29924,2326.0,2325.6,1.713058]
[1727969584375,0.1156938,2326.2,2325.7,4.29964]
[1727969584591,0.1156938,2326.2,2325.8,4.2995]
[1727969584884,0.1156938,2326.2,2325.8,4.29959]
[1727969584885,4.4146838,2326.2,2325.8,4.29959]
[1727969585032,0.1156938,2326.2,2325.8,8.59909]
[1727969585234,0.1156938,2326.2,2326.0,4.29914]
[1727969585471,0.1156938,2326.2,2325.8,5.291899]
[1727969585780,0.1156938,2326.2,2325.9,4.29938]
[1727969585933,4.2992,2326.1,2325.6,5.07545]
[1727969586452,4.2992,2326.1,2325.7,4.29969]
[1727969586794,4.2992,2326.1,2325.7,0.937514]
[1727969586995,4.2992,2326.1,2325.6,5.07534]
[1727969586996,4.29916,2326.1,2325.6,5.07534]
[1727969587172,4.29914,2326.1,2325.6,5.07543]
[1727969587367,0.1156938,2326.2,2325.6,5.07543]
[1727969587368,4.2995,2325.9,2325.6,0.7755]
[1727969587574,0.1156938,2326.2,2325.6,0.7755]
[1727969587575,4.29978,2325.7,2325.6,0.7755]
[1727969587801,8.59936,2325.8,2325.6,0.7755]
[1727969587992,4.29978,2325.7,2325.2,0.7949]
[1727969588188,4.30023,2325.5,2325.2,0.7949]
[1727969588671,4.30034,2325.4,2325.2,0.7949]
[1727969588872,4.30052,2325.3,2324.9,0.7949]
[1727969589072,4.30079,2325.2,2324.9,0.7949]
[1727969589304,4.30052,2325.3,2324.9,0.7949]
[1727969589476,8.60117,2325.3,2324.9,0.7949]